bitfinex/quotes_BTCUSD_20251224
["timestamp","ask_amount","ask_price","bid_price","bid_amount"]
[1766591222200,0.01148197,87093.0,87083.0,0.01156]
[1766591222402,0.01148184,87094.0,87083.0,0.01156]
[1766591222645,0.06889154,87094.0,87083.0,0.01156]
[1766591222816,0.01148197,87093.0,87083.0,0.01156]
[1766591223021,0.05740924,87094.0,87083.0,0.01156]
[1766591223232,0.01148197,87093.0,87083.0,0.01156]
[1766591223745,0.01148197,87093.0,87080.0,0.01148369]
[1766591223746,0.06889448,87090.0,87080.0,0.01156]
[1766591223953,0.0114825,87089.0,87080.0,0.01156]
[1766591224333,0.0114825,87089.0,87070.0,0.01148501]
[1766591224334,0.11534,87089.0,87066.0,0.01148553]
[1766591224537,0.4501369,87090.0,87078.0,0.01148395]
[1766591224734,0.46161927,87090.0,87076.0,0.05742101]
[1766591225088,0.02304224,87091.0,87068.0,0.11763]
[1766591225287,0.02304224,87091.0,87080.0,0.05741844]
[1766591225288,0.01156,87091.0,87080.0,0.05741844]
[1766591225428,0.01156,87091.0,87080.0,0.01148369]
[1766591225629,0.01156,87093.0,87082.0,0.01148342]
[1766591225964,0.01156,87093.0,87081.0,0.01159356]
[1766591226182,0.06889438,87090.0,87081.0,0.00011]
[1766591226343,0.01156,87093.0,87081.0,0.00011]
[1766591226544,0.06889352,87091.0,87081.0,0.00011]
[1766591226775,0.01148237,87090.0,87081.0,0.00011]
[1766591227118,0.0114825,87089.0,87081.0,0.00011]
[1766591227549,0.06889446,87090.0,87081.0,0.00011]
[1766591227751,0.01148303,87085.0,87081.0,0.00011]
[1766591227956,0.12682237,87090.0,87078.0,0.01156]
[1766591228137,0.0114825,87089.0,87078.0,0.01156]
[1766591228471,0.05741319,87088.0,87078.0,0.01156]
[1766591228806,0.00382591,87090.0,87078.0,0.01156]
[1766591229013,0.0114825,87089.0,87078.0,0.01156]
[1766591229346,0.06889516,87089.0,87078.0,0.01156]
[1766591229712,0.0114825,87089.0,87078.0,0.01156]
[1766591229837,0.0114829,87086.0,87078.0,0.01156]
[1766591230039,0.001099,87078.0,87068.0,0.01148527]
[1766591230323,0.01156,87093.0,87067.0,0.11763]
[1766591230324,0.10451608,87088.0,87071.0,0.01148488]
[1766591230518,0.04710263,87088.0,87075.0,0.01148435]
[1766591230810,0.01156,87087.0,87075.0,0.01156]
[1766591231019,0.01156,87087.0,87075.0,0.02304435]
[1766591231356,0.01156,87087.0,87077.0,0.01148408]
[1766591231562,0.01156,87087.0,87080.0,0.01148369]
[1766591231770,0.06889111,87094.0,87080.0,0.01148369]
[1766591231971,0.02304197,87093.0,87081.0,0.01148356]
[1766591232451,0.08045208,87093.0,87080.0,0.06890174]
[1766591232657,0.01156,87093.0,87081.0,0.01148356]
[1766591232802,0.01156,87093.0,87082.0,0.12911342]
[1766591233360,0.01148211,87092.0,87082.0,0.11763]
[1766591233532,0.08045192,87093.0,87082.0,0.11763]
[1766591233736,0.02304197,87093.0,87082.0,0.11763]
[1766591233932,0.08045212,87093.0,87082.0,0.11763]
[1766591234455,0.01148211,87092.0,87082.0,0.11763]
[1766591234861,0.01156,87093.0,87073.0,0.11763]
[1766591235021,0.00055,87075.0,87061.0,0.11763]
[1766591235204,0.01038843,87082.0,87072.0,0.11763]
[1766591235407,0.01038843,87082.0,87075.0,0.12911435]
[1766591235606,0.01038843,87082.0,87076.0,0.05742053]
[1766591235856,0.01038843,87082.0,87077.0,0.05741991]
[1766591236058,0.01038843,87082.0,87075.0,0.11763]
[1766591236236,0.01038843,87082.0,87075.0,0.12911435]
[1766591236573,0.01038843,87082.0,87075.0,0.11763]
[1766591236768,0.01156,87086.0,87075.0,0.11763]
[1766591236921,0.01156,87086.0,87075.0,0.12911435]
[1766591237322,0.01148342,87082.0,87071.0,0.01156]
[1766591237577,0.08045767,87086.0,87071.0,0.01156]
[1766591237775,0.06889883,87085.0,87071.0,0.08046921]
[1766591237950,0.01148316,87084.0,87072.0,0.01148474]
[1766591238148,0.06889883,87085.0,87072.0,0.01148474]
[1766591238349,0.01156,87086.0,87072.0,0.06890821]
[1766591238556,0.05741585,87084.0,87072.0,0.01148474]
[1766591238793,0.01148329,87083.0,87071.0,0.02304488]
[1766591238934,0.01148356,87081.0,87071.0,0.01156]
[1766591239138,0.01148382,87079.0,87071.0,0.01156]
[1766591239338,0.0574211,87076.0,87062.0,0.06899031]
[1766591239698,0.01148474,87072.0,87059.0,0.01156]
[1766591239838,0.01156,87072.0,87061.0,0.01148619]
[1766591240275,0.01156,87072.0,87060.0,0.06902744]
[1766591240478,0.0804688,87072.0,87060.0,0.00011]
[1766591240653,0.01148527,87068.0,87059.0,0.01156]
[1766591240874,0.0114854,87067.0,87059.0,0.01156]
[1766591241371,0.06891362,87066.0,87059.0,0.01156]
[1766591241571,0.01156,87072.0,87059.0,0.06899222]
[1766591241572,0.02304474,87072.0,87059.0,0.06899222]
[1766591241769,0.06890928,87071.0,87059.0,0.01156]
[1766591241974,0.01148488,87071.0,87059.0,0.02304646]
[1766591242178,0.05742637,87068.0,87059.0,0.01156]
[1766591242379,0.01148514,87069.0,87059.0,0.01156]
[1766591242580,0.01148514,87069.0,87056.0,0.0689206]
[1766591242765,0.06891135,87069.0,87056.0,0.01148685]
[1766591243306,0.4501369,87070.0,87057.0,0.01148672]
[1766591243678,0.51904758,87070.0,87058.0,0.01148659]
[1766591243996,0.46162191,87070.0,87058.0,0.01148659]
[1766591244177,0.4501369,87070.0,87058.0,0.01148659]
[1766591244579,0.01148514,87069.0,87057.0,0.06891992]
[1766591244780,0.4501369,87070.0,87059.0,0.01148646]
[1766591245106,0.46162191,87070.0,87058.0,0.01148659]
[1766591245300,0.46162191,87070.0,87059.0,0.01148646]
[1766591245467,0.46162191,87070.0,87058.0,0.06891956]
[1766591245801,0.4501369,87070.0,87063.0,0.01148593]
[1766591246003,0.01164938,87072.0,87070.0,0.000549]
[1766591246220,8.938e-05,87072.0,87070.0,0.000549]
[1766591246505,0.01156,87071.0,87070.0,0.000549]
[1766591246700,0.01156,87071.0,87065.0,0.01148567]
[1766591247002,0.01156,87071.0,87064.0,0.06891453]
[1766591247230,0.01156,87071.0,87061.0,0.06891707]
[1766591247403,0.01156,87071.0,87059.0,0.01148646]
[1766591247585,0.01156,87071.0,87061.0,0.06891665]
[1766591247753,0.01156,87071.0,87061.0,0.06891698]
[1766591247954,0.01156,87071.0,87062.0,0.0574298]
[1766591248150,0.01156,87071.0,87062.0,0.01148606]
[1766591248354,0.01156,87071.0,87061.0,0.01148619]
[1766591248752,0.01120062,87071.0,87057.0,0.01156]
[1766591249006,0.4728224,87071.0,87058.0,0.01148659]
[1766591249164,0.01120062,87071.0,87059.0,0.06891859]
[1766591249380,0.01120062,87071.0,87062.0,0.01148606]
[1766591249579,0.01120062,87071.0,87064.0,0.0114858]
[1766591249885,0.01120062,87071.0,87062.0,0.06891605]
[1766591250085,0.01120062,87071.0,87063.0,0.06891539]
[1766591250522,0.01120062,87071.0,87062.0,0.06891605]
[1766591250738,0.01120062,87071.0,87060.0,0.05743165]
[1766591250933,0.01148514,87069.0,87057.0,0.01156]
[1766591251138,0.01148514,87069.0,87053.0,0.01148725]
[1766591251139,0.01148553,87066.0,87053.0,0.01156]
[1766591251362,0.01148593,87063.0,87053.0,0.01156]
[1766591251518,0.01148633,87060.0,87048.0,0.11488]
[1766591251699,0.01148672,87057.0,87044.0,0.06940214]
[1766591251906,0.01156,87059.0,87047.0,0.01148804]
[1766591252242,0.01148659,87058.0,87044.0,0.01196]
[1766591252465,0.01148712,87054.0,87044.0,0.01196]
[1766591252602,0.01148738,87052.0,87044.0,0.01196]
[1766591252986,0.01156,87051.0,87034.0,0.01148976]
[1766591253191,0.4501369,87050.0,87042.0,0.0114887]
[1766591253393,0.01156,87051.0,87045.0,0.01148831]
[1766591253592,0.01156,87051.0,87045.0,0.06892859]
[1766591253905,0.0114858,87064.0,87046.0,0.01148817]
[1766591254124,0.04821806,87062.0,87049.0,0.01148778]
[1766591254334,0.06891805,87060.0,87046.0,0.1838085]
[1766591254536,0.036732,87062.0,87049.0,0.01148778]
[1766591254679,0.036732,87062.0,87051.0,0.01148751]
[1766591254872,0.01148633,87060.0,87047.0,0.01148804]
[1766591255166,0.036732,87062.0,87050.0,0.01148765]
[1766591255575,0.036732,87062.0,87051.0,0.01148751]
[1766591256004,0.24118907,87069.0,87052.0,0.01148738]
[1766591256213,0.04596,87079.0,87061.0,0.11488]
[1766591256421,0.01156,87071.0,87061.0,0.11488]
[1766591256626,0.01156,87071.0,87062.0,0.01148606]
[1766591257049,0.01156,87071.0,87061.0,0.12636619]
[1766591257364,0.01156,87071.0,87061.0,0.11488]
[1766591257696,0.01148527,87068.0,87061.0,0.113781]
[1766591257988,0.0114854,87067.0,87056.0,0.01156]
[1766591258198,0.02304488,87071.0,87057.0,0.01148672]
[1766591258388,0.01148527,87068.0,87057.0,0.01148672]
[1766591258572,0.01148514,87069.0,87058.0,0.01148659]
[1766591258886,0.06891114,87069.0,87056.0,0.08048104]
[1766591259031,0.01148501,87070.0,87058.0,0.01148659]
[1766591259344,0.01148501,87070.0,87057.0,0.05743337]
[1766591259546,0.01148527,87068.0,87056.0,0.02304685]
[1766591259788,0.01142713,87068.0,87056.0,0.02304685]
[1766591259970,0.06891054,87070.0,87058.0,0.00011]
[1766591260181,0.01148514,87069.0,87058.0,0.00011]
[1766591260461,0.02304488,87071.0,87059.0,0.01148646]
[1766591260678,0.01148501,87070.0,87059.0,0.01148646]
[1766591261176,0.01148501,87070.0,87058.0,0.01159659]
[1766591261427,0.08046986,87071.0,87059.0,0.01148646]
[1766591261639,0.01148501,87070.0,87059.0,0.01148646]
[1766591262283,0.01148501,87070.0,87058.0,0.01148659]
[1766591262718,0.01148501,87070.0,87059.0,0.01148646]
[1766591263122,0.08046952,87071.0,87059.0,0.01148646]
[1766591263312,0.02304488,87071.0,87059.0,0.06891857]
[1766591263729,0.02304488,87071.0,87060.0,0.01148633]
[1766591263875,0.08046942,87071.0,87059.0,0.01148646]
[1766591264519,0.01148514,87069.0,87058.0,0.01148659]
[1766591264733,0.01148514,87069.0,87057.0,0.01148672]
[1766591265078,0.01148514,87069.0,87056.0,0.05743378]
[1766591265079,0.01156,87071.0,87061.0,0.01148619]
[1766591265279,0.01156,87071.0,87059.0,0.22972805]
[1766591265280,0.01156,87071.0,87069.0,0.000549]
[1766591265649,0.01156,87071.0,87059.0,0.12437]
[1766591265650,0.01148553,87066.0,87059.0,0.12437]
[1766591265833,0.01156,87065.0,87059.0,0.12437]
[1766591266032,0.01156,87065.0,87052.0,0.13593]
[1766591266033,0.01148619,87061.0,87052.0,0.13593]
[1766591266237,0.01156,87060.0,87013.0,0.10325423]
[1766591266439,0.01148738,87052.0,87041.0,0.12437]
[1766591266611,0.036732,87063.0,87046.0,0.01148817]
[1766591266612,0.01156,87054.0,87046.0,0.01148817]
[1766591266813,0.01156,87053.0,87043.0,0.01148857]
[1766591267018,0.01156,87052.0,87044.0,0.01148844]
[1766591267329,0.01156,87052.0,87045.0,0.06892979]
[1766591267501,0.01156,87052.0,87045.0,0.01148831]
[1766591267705,0.01156,87052.0,87041.0,0.13593]
[1766591267706,0.01156,87052.0,87041.0,0.12437]
[1766591267911,0.01156,87052.0,87038.0,0.02304923]
[1766591267912,0.01148765,87050.0,87038.0,0.02304923]
[1766591268128,0.01148778,87049.0,87038.0,0.02304923]
[1766591268373,0.01156,87052.0,87040.0,0.01148897]
[1766591268526,0.01148646,87059.0,87052.0,0.00055]
[1766591268728,0.06899363,87058.0,87052.0,0.00055]
[1766591268992,0.06892228,87055.0,87049.0,0.12437]
[1766591269144,0.01148672,87057.0,87049.0,0.12437]
[1766591269145,0.05743484,87056.0,87049.0,0.12437]
[1766591269343,0.01148672,87057.0,87049.0,0.12437]
[1766591269783,0.01156,87058.0,87049.0,0.12437]
[1766591270364,0.01156,87058.0,87049.0,0.13585778]
[1766591270571,0.01156,87057.0,87050.0,0.01148765]
[1766591270771,0.66121175,87080.0,87057.0,0.00055]
[1766591271013,0.06778299,87078.0,87060.0,0.01148633]
[1766591271211,0.01156,87071.0,87062.0,0.01148606]
[1766591271516,0.01148501,87070.0,87060.0,0.12437]
[1766591271652,0.05742883,87065.0,87060.0,0.11281]
[1766591271852,0.0689156,87063.0,87060.0,0.11281]
[1766591272057,0.05743033,87062.0,87060.0,0.11281]
[1766591272462,0.05743172,87060.0,87050.0,0.12437]
[1766591272660,0.01148633,87060.0,87050.0,0.13593]
[1766591272908,0.01148646,87059.0,87050.0,0.13593]
[1766591273069,0.06891625,87063.0,87050.0,0.13593]
[1766591273270,0.06891691,87062.0,87050.0,0.13593]
[1766591273573,0.01148606,87062.0,87051.0,0.01148751]
[1766591273754,0.24119968,87065.0,87052.0,0.06892429]
[1766591273755,0.01156,87061.0,87052.0,0.06892429]
[1766591273956,0.01156,87061.0,87052.0,0.01148738]
[1766591274217,0.01156,87061.0,87051.0,0.13585751]
[1766591274408,0.01156,87061.0,87051.0,0.19329502]
[1766591274768,0.01156,87061.0,87051.0,0.12437]
[1766591275002,0.01156,87061.0,87051.0,0.13585751]
[1766591275631,0.01156,87061.0,87051.0,0.12437]
[1766591275957,0.01148633,87060.0,87051.0,0.12437]
[1766591276094,0.01156,87061.0,87050.0,0.01156]
[1766591276293,0.01156,87066.0,87063.0,0.12437]
[1766591276621,0.01156,87067.0,87063.0,0.12437]
[1766591277198,0.01156,87070.0,87063.0,0.12437]
[1766591277909,0.01156,87070.0,87059.0,0.13585646]
[1766591278313,0.01156,87070.0,87060.0,0.01148633]
[1766591279594,0.01156,87070.0,87061.0,0.01148619]
[1766591279812,0.01156,87070.0,87059.0,0.12437]
[1766591279813,0.02304501,87070.0,87059.0,0.12437]
[1766591280334,0.01156,87070.0,87059.0,0.18180223]
[1766591280477,0.01156,87070.0,87059.0,0.12437]
[1766591280676,0.01156,87070.0,87060.0,0.01148633]
[1766591280935,0.06899901,87072.0,87070.0,0.000549]
[1766591280936,0.0082944,87072.0,87070.0,0.000549]
[1766591281148,0.0082944,87072.0,87065.0,0.11283]
[1766591281149,0.01580415,87072.0,87066.0,0.05742768]
[1766591281314,4.15e-06,87073.0,87067.0,0.1243154]
[1766591281518,0.01156,87074.0,87067.0,0.1244217]
[1766591283930,0.06889805,87086.0,87078.0,0.11228]
[1766591284161,0.08045784,87087.0,87078.0,0.11228]
[1766591284976,0.01148303,87085.0,87078.0,0.11228]
[1766591285574,0.08045784,87087.0,87078.0,0.11228]
[1766591286080,0.01148303,87085.0,87078.0,0.11228]
[1766591286742,0.0114829,87086.0,87078.0,0.11228]
[1766591286867,0.01148303,87085.0,87078.0,0.11228]
[1766591287066,0.01148329,87083.0,87078.0,0.09736502]
[1766591287275,0.01148329,87083.0,87067.0,0.2412996]
[1766591287276,0.11282999,87058.0,87056.0,0.01148685]
[1766591287479,6.913e-05,87058.0,87055.0,0.01148699]
[1766591287936,6.913e-05,87058.0,87056.0,0.05743382]
[1766591288137,6.913e-05,87058.0,87052.0,0.01148738]
[1766591288291,6.913e-05,87058.0,87047.0,0.11283]
[1766591288496,0.001099,87052.0,87047.0,0.11283]
[1766591288879,0.06898882,87058.0,87047.0,0.11283]
[1766591289084,6.913e-05,87058.0,87047.0,0.11283]
[1766591289300,6.913e-05,87058.0,87047.0,0.12431804]
[1766591289501,0.01155572,87058.0,87047.0,0.11283]
[1766591289732,0.01148685,87056.0,87047.0,0.11283]
[1766591290119,0.06898929,87058.0,87047.0,0.11283]
[1766591290120,0.01155572,87058.0,87047.0,0.11283]
[1766591290315,6.913e-05,87058.0,87050.0,0.01148765]
[1766591290754,6.913e-05,87058.0,87049.0,0.06892644]
[1766591290912,6.913e-05,87058.0,87050.0,0.01148765]
[1766591291108,6.913e-05,87058.0,87051.0,0.01148751]
[1766591291632,6.913e-05,87058.0,87050.0,0.01148765]
[1766591292163,6.913e-05,87058.0,87050.0,0.06892575]
[1766591292378,6.913e-05,87058.0,87047.0,0.12431804]
[1766591292379,6.913e-05,87058.0,87047.0,0.17027012]
[1766591292588,6.913e-05,87058.0,87047.0,0.17026999]
[1766591292711,6.913e-05,87058.0,87049.0,0.01148778]
[1766591292915,6.913e-05,87058.0,87050.0,0.01148765]
[1766591293538,6.913e-05,87058.0,87050.0,0.12431765]
[1766591293750,6.913e-05,87058.0,87055.0,0.01148699]
[1766591293956,6.913e-05,87058.0,87054.0,0.01148712]
[1766591294164,6.913e-05,87058.0,87053.0,0.01148725]
[1766591294385,6.913e-05,87058.0,87054.0,0.01141411]
[1766591294600,0.01156,87061.0,87054.0,0.01141411]
[1766591294820,0.01156,87061.0,87058.0,0.01148659]
[1766591295028,0.01156,87061.0,87054.0,0.01152032]
[1766591295029,0.01156,87061.0,87056.0,0.05743106]
[1766591295234,0.01156,87061.0,87056.0,1.06e-06]
[1766591302823,0.05743363,87057.0,87056.0,1.06e-06]
[1766591303050,0.01149015,87031.0,87020.0,0.00011]
[1766591303247,0.01149134,87022.0,87009.0,0.00028328]
[1766591303471,0.01149134,87022.0,87009.0,6.941e-05]
[1766591303472,0.06229134,87022.0,87009.0,6.941e-05]
[1766591303630,0.05745943,87018.0,87009.0,6.941e-05]
[1766591303831,0.01149319,87008.0,87005.0,0.0004]
[1766591304048,0.02305319,87008.0,86993.0,0.01149517]
[1766591304251,0.04993,87008.0,86995.0,0.00035475]
[1766591304489,0.01156,87008.0,87002.0,0.06896384]
[1766591304688,0.01156,87008.0,87001.0,0.01149412]
[1766591304898,0.01156,87008.0,87003.0,0.01149385]
[1766591305037,0.01156,87009.0,87008.0,0.000549]
[1766591305241,0.01156,87009.0,87004.0,0.06896201]
[1766591305439,0.01156,87009.0,87004.0,0.01149372]
[1766591305660,0.01156,87009.0,87001.0,0.01149412]
[1766591305861,0.01156,87009.0,86998.0,0.11283]
[1766591306212,0.00055,86998.0,86995.0,0.00035475]
[1766591306496,0.01156,87010.0,87001.0,0.01149412]
[1766591306656,0.00621783,87010.0,87006.0,0.01149346]
[1766591306892,0.00329009,87010.0,87008.0,0.05746579]
[1766591307102,0.00329009,87010.0,87006.0,0.01149346]
[1766591307296,0.00329009,87010.0,87007.0,0.01149332]
[1766591307503,0.00329009,87010.0,87007.0,0.06895986]
[1766591307944,0.00329009,87010.0,87008.0,0.05746558]
[1766591308291,0.00329009,87010.0,87005.0,0.01149359]
[1766591308487,0.00329009,87010.0,87000.0,0.12225]
[1766591308728,0.00329009,87010.0,86998.0,0.0689668]
[1766591308927,0.01149464,86997.0,86982.0,0.01149663]
[1766591309170,0.01149517,86993.0,86987.0,0.01196]
[1766591309325,0.71865385,87000.0,86993.0,0.001099]
[1766591309673,0.67267659,87000.0,86987.0,0.01196]
[1766591309888,0.66118234,87000.0,86990.0,0.01149557]
[1766591310070,0.67267527,87010.0,86994.0,0.01149504]
[1766591310278,0.01149346,87006.0,86993.0,0.06897078]
[1766591310412,0.01149346,87006.0,86994.0,0.01149504]
[1766591310623,0.01149346,87006.0,86999.0,0.00025257]
[1766591310827,0.06896466,87002.0,86999.0,5.7e-07]
[1766591311025,0.01156,87003.0,86999.0,5.7e-07]
[1766591312707,0.05747291,86998.0,86985.0,0.06897698]
[1766591312904,0.01149438,86999.0,86987.0,0.02345597]
[1766591313148,0.67267659,87000.0,86989.0,0.0114957]
[1766591313359,0.01149438,86999.0,86988.0,0.01149583]
[1766591313806,0.01156,87003.0,86988.0,0.01149583]
[1766591313807,0.01156,87003.0,86988.0,0.12225]
[1766591314015,0.45957814,87038.0,86999.0,0.000252]
[1766591314016,0.01156,87008.0,86999.0,0.000252]
[1766591314211,0.01191431,87008.0,87000.0,0.01149425]
[1766591314671,0.01191431,87008.0,87001.0,0.01149412]
[1766591315003,0.00010231,87008.0,87003.0,0.01149385]
[1766591315167,0.00010231,87008.0,86999.0,0.12225]
[1766591315339,0.00010231,87008.0,87000.0,0.05747093]
[1766591315538,0.00010231,87008.0,87002.0,0.01149398]
[1766591315938,0.00010231,87008.0,86998.0,0.01149451]
[1766591316142,0.0115955,87008.0,86997.0,0.13374464]
[1766591316638,0.0115955,87008.0,86995.0,0.05747447]
[1766591316639,0.00010231,87008.0,86995.0,4.47e-06]
[1766591316854,0.00010231,87008.0,87000.0,0.05747108]
[1766591317069,0.00010231,87008.0,87002.0,0.01149398]
[1766591317279,0.229823,87024.0,87001.0,0.01149412]
[1766591317280,0.01149068,87027.0,87013.0,0.01149253]
[1766591317487,0.01149108,87024.0,87013.0,0.01149253]
[1766591317700,0.01149121,87023.0,87010.0,0.13374293]
[1766591317902,0.01149134,87022.0,87011.0,0.01149279]
[1766591318105,0.01149121,87023.0,87011.0,0.01149279]
[1766591318615,0.000549,87011.0,87005.0,0.01156]
[1766591318855,0.000549,87011.0,87005.0,0.02305359]
[1766591319060,0.01149161,87020.0,87006.0,0.22986873]
[1766591319266,0.01149174,87019.0,87007.0,0.01149332]
[1766591319479,0.05746157,87015.0,87003.0,0.01149385]
[1766591319686,0.000549,87007.0,87006.0,0.01156]
[1766591319893,0.000549,87007.0,87003.0,0.06896293]
[1766591319894,0.00055,87006.0,87003.0,0.01156]
[1766591320112,0.01149319,87008.0,86994.0,0.05747493]
[1766591320318,0.01149319,87008.0,86994.0,0.06904013]
[1766591320530,0.01156,87010.0,86997.0,0.01149464]
[1766591320741,0.01156,87010.0,87002.0,0.01149398]
[1766591321099,0.01159693,87027.0,87011.0,0.01149279]
[1766591321298,0.000549,87011.0,87008.0,0.13374319]
[1766591321787,0.01156,87025.0,87012.0,0.01149266]
[1766591321933,0.01149121,87023.0,87011.0,0.05746399]
[1766591322135,0.01149161,87020.0,87009.0,0.01149306]
[1766591322340,0.06894887,87021.0,87009.0,0.01149306]
[1766591322858,0.01149174,87019.0,87008.0,0.13374319]
[1766591323098,0.01149213,87016.0,87008.0,0.12225]
[1766591323302,0.01149213,87016.0,86991.0,0.00025256]
[1766591323303,0.01149398,87002.0,86993.0,0.01156]
[1766591323503,0.06896743,86998.0,86991.0,0.00025256]
[1766591323707,0.06896743,86998.0,86991.0,2.56e-06]
[1766591323708,0.01149451,86998.0,86991.0,2.56e-06]
[1766591323915,0.06896802,86997.0,86985.0,0.01149623]
[1766591324084,0.06896802,86997.0,86983.0,0.10348222]
[1766591324085,0.01149478,86996.0,86986.0,0.01156]
[1766591324289,0.01156,86999.0,86985.0,0.05748113]
[1766591324486,0.02305438,86999.0,86986.0,0.0114961]
[1766591324634,0.01156,86999.0,86987.0,0.0697296]
[1766591325071,0.01156,86999.0,86984.0,0.01149636]
[1766591325072,0.05747258,86998.0,86984.0,0.01149636]
[1766591325280,0.05747258,86998.0,86977.0,0.22994435]
[1766591325281,0.000547,86984.0,86975.0,0.05748765]
[1766591325484,0.46287123,86990.0,86979.0,0.01149702]
[1766591325795,0.01149544,86991.0,86979.0,0.06898211]
[1766591325994,0.01149544,86991.0,86978.0,0.18896274]
[1766591325995,0.01149557,86990.0,86978.0,0.18896274]
[1766591326137,0.01149557,86990.0,86979.0,0.01149702]
[1766591326558,0.0114957,86989.0,86978.0,0.11998]
[1766591326965,0.0114957,86989.0,86978.0,0.13147716]
[1766591327158,0.06897346,86990.0,86979.0,0.01149702]
[1766591327365,0.05747983,86988.0,86978.0,0.11998]
[1766591327592,0.01149583,86988.0,86980.0,0.011013]
[1766591327798,0.0114957,86989.0,86980.0,0.011013]
[1766591328023,0.06897447,86989.0,86977.0,0.06898372]
[1766591328302,0.5203491,86990.0,86977.0,0.06898372]
[1766591328303,0.45137566,86990.0,86979.0,0.05748485]
[1766591328477,0.45137566,86990.0,86982.0,0.01149663]
[1766591328662,0.5088536,86990.0,86978.0,0.01149716]
[1766591328860,0.01149649,86983.0,86977.0,0.00010639]
[1766591329062,0.45137566,86990.0,86967.0,0.05749264]
[1766591329063,0.000106,86977.0,86967.0,0.05749264]
[1766591329286,0.0574857,86979.0,86965.0,0.01196]
[1766591329505,0.01149808,86971.0,86965.0,0.0004]
[1766591329706,0.01149782,86973.0,86965.0,0.0004]
[1766591329908,0.01149782,86973.0,86962.0,0.0004]
[1766591329909,0.01149821,86970.0,86962.0,0.0004]
[1766591330104,0.01149821,86970.0,86952.0,0.01156]
[1766591330105,0.00015,86962.0,86952.0,0.01156]
[1766591330250,0.00015,86962.0,86956.0,0.01150006]
[1766591330452,0.04823061,86967.0,86954.0,0.05750102]
[1766591330453,0.036732,86967.0,86955.0,0.06900117]
[1766591330649,0.01149901,86964.0,86952.0,0.00010639]
[1766591330921,0.0114998,86958.0,86952.0,0.00010639]
[1766591331051,0.01149901,86964.0,86952.0,0.00010639]
[1766591331250,0.036732,86967.0,86957.0,3.39e-06]
[1766591331449,0.01149887,86965.0,86953.0,0.06900236]
[1766591331655,0.036732,86967.0,86954.0,0.01150033]
[1766591331967,0.45137566,86963.0,86953.0,0.01150046]
[1766591332167,0.01149848,86968.0,86952.0,0.01160698]
[1766591332168,0.01156,86969.0,86956.0,0.05750034]
[1766591332378,0.046,86986.0,86968.0,0.01149848]
[1766591332575,0.45137566,86980.0,86964.0,0.11998]
[1766591332805,0.01156,86979.0,86968.0,0.01149848]
[1766591333006,0.45137566,86980.0,86970.0,0.01149821]
[1766591333181,0.01156,86978.0,86968.0,0.01149848]
[1766591333416,0.01156,86977.0,86968.0,0.05749241]
[1766591333585,0.01156,86977.0,86970.0,0.01149821]
[1766591334036,0.01156,86977.0,86970.0,0.06898928]
[1766591334245,0.01156,86977.0,86971.0,0.01149808]
[1766591334536,0.01156,86977.0,86968.0,0.05749212]
[1766591334537,0.01156,86977.0,86968.0,0.0689906]
[1766591334739,0.01156,86977.0,86969.0,0.01149834]
[1766591335583,0.01156,86977.0,86970.0,0.01149821]
[1766591336239,0.01156,86977.0,86967.0,0.01149861]
[1766591336399,0.01156,86977.0,86968.0,0.01149848]
[1766591336816,0.01156,86977.0,86969.0,0.01149834]
[1766591337576,0.01156,86977.0,86968.0,0.01149848]
[1766591337737,0.01156,86977.0,86969.0,0.01149834]
[1766591338571,0.01156,86976.0,86968.0,0.01149848]
[1766591338777,0.01156,86976.0,86972.0,0.01149795]
[1766591339037,0.0114961,86986.0,86973.0,0.01149782]
[1766591339196,0.01149663,86982.0,86972.0,0.12677]
[1766591339420,0.01149663,86982.0,86972.0,0.01149795]
[1766591339628,0.45137566,86982.0,86975.0,0.01149755]
[1766591340028,0.45137566,86982.0,86976.0,0.06898454]
[1766591340250,0.45137566,86982.0,86978.0,0.01149716]
[1766591340455,0.01156,86984.0,86981.0,0.06898046]
[1766591340668,0.01156,86983.0,86979.0,0.01149702]
[1766591340871,0.01156,86983.0,86980.0,0.06898107]
[1766591341280,0.01156,86983.0,86980.0,0.01149689]
[1766591341486,0.01156,86983.0,86979.0,0.06898187]
[1766591341487,0.000549,86980.0,86977.0,0.06898349]
[1766591341697,0.01156,86983.0,86979.0,0.01149702]
[1766591341904,0.01156,86983.0,86977.0,0.01149729]
[1766591341905,0.01149544,86991.0,86978.0,0.13826716]
[1766591342235,0.01156,86986.0,86978.0,0.19575167]
[1766591342446,0.01156,86986.0,86980.0,0.01149689]
[1766591342654,0.00010625,86991.0,86984.0,0.12677]
[1766591342857,0.01156,86990.0,86984.0,0.13826636]
[1766591343062,0.01156,86990.0,86985.0,0.01149623]
[1766591343280,0.01156,86990.0,86985.0,0.01094723]
[1766591343489,0.01156,86990.0,86985.0,0.06842836]
[1766591343701,0.01156,86990.0,86986.0,0.0114961]
[1766591344086,0.01156,86990.0,86986.0,0.06897661]
[1766591344344,0.01156,86990.0,86987.0,0.06897557]
[1766591344607,0.01156,86990.0,86986.0,0.06897661]
[1766591345026,0.01156,86990.0,86987.0,0.01149597]
[1766591345862,0.00010625,86991.0,86988.0,0.01149583]
[1766591346073,0.00010625,86991.0,86990.0,0.000549]
[1766591346507,0.00010625,86991.0,86988.0,0.01149583]
[1766591346720,0.00010625,86991.0,86987.0,0.01149597]
[1766591346920,0.00010625,86991.0,86988.0,0.06897446]
[1766591347485,0.00010625,86991.0,86989.0,0.05747837]
[1766591347647,0.00010625,86991.0,86990.0,0.05747787]
[1766591347842,0.01167,86994.0,86991.0,0.01160144]
[1766591348049,0.011227,86994.0,86993.0,0.05747588]
[1766591348259,0.48810766,87010.0,87003.0,0.01149385]
[1766591348459,0.00055,87003.0,87002.0,0.05746994]
[1766591348666,0.01156,87005.0,87002.0,0.01149398]
[1766591349521,5.888e-05,87002.0,86995.0,0.01149491]
[1766591349695,5.888e-05,87002.0,86999.0,0.06896629]
[1766591350032,0.01149108,87024.0,87014.0,0.0114924]
[1766591350245,0.01156,87016.0,87007.0,0.05746658]
[1766591350393,0.01156,87016.0,87008.0,0.01149319]
[1766591350596,5.9e-05,87008.0,87007.0,0.01149332]
[1766591350793,0.01156,87016.0,87010.0,0.05746441]
[1766591351028,4.75e-06,87017.0,87016.0,0.000549]
[1766591351567,4.75e-06,87017.0,87016.0,0.05746069]
[1766591351987,0.046,87037.0,87026.0,0.01149081]
[1766591352199,0.01156,87036.0,87029.0,0.01149042]
[1766591352407,0.01156,87036.0,87025.0,0.01149095]
[1766591352609,0.02304949,87036.0,87025.0,0.01149095]
[1766591352776,0.01156,87036.0,87024.0,0.06894598]
[1766591352974,0.01148963,87035.0,87023.0,0.01149121]